fUST/lending_fUST_20240721
["ID","MTS","AMOUNT","RATE_DAILY","PERIOD"]
[332768744,1721509856620,-687.59,0.00014246,2]
[332768745,1721509856630,-752.37,0.00014246,2]
[332768746,1721509856639,-500.0,0.00014246,2]
[332768747,1721509856648,-500.0,0.00014246,2]
[332768748,1721509856657,-1256.37,0.00014246,2]
[332768749,1721509856666,-1336.62,0.00014246,2]
[332768750,1721509856676,-1137.19,0.00014246,2]
[332768751,1721509856685,-500.0,0.00014246,2]
[332768752,1721509856694,-500.0,0.00014246,2]
[332768753,1721509856704,-1896.75,0.00014246,2]
[332768754,1721509856713,-500.0,0.00014246,2]
[332768755,1721509856722,-560.73301691,0.00014246,2]
[332768756,1721509856732,-2521.54,0.00014246,2]
[332768757,1721509856741,-10248.99,0.00014246,2]
[332768758,1721509856750,-1360.19,0.00014246,2]
[332768759,1721509856759,-500.0,0.00014246,2]
[332768760,1721509856769,-12219.86,0.00014246,2]
[332768761,1721509856778,-500.0,0.00014246,2]
[332768762,1721509856787,-500.0,0.00014246,2]
[332768763,1721509856796,-500.0,0.00014246,2]
[332768764,1721509856806,-2906.83,0.00014246,2]
[332768765,1721509856815,-500.0,0.00014246,2]
[332768766,1721509856825,-500.0,0.00014246,2]
[332768767,1721509856834,-500.0,0.00014246,2]
[332768768,1721509856844,-1339.52,0.00014246,2]
[332768769,1721509856853,-500.0,0.00014246,2]
[332768770,1721509856863,-838.95,0.00014246,2]
[332768771,1721509856873,-1411.67,0.00014246,2]
[332768772,1721509856882,-509.59,0.00014246,2]
[332768773,1721509856891,-160.6217,0.00014246,2]
[332768774,1721509856901,-500.0,0.00014246,2]
[332768775,1721509856911,-500.0,0.00014246,2]
[332768776,1721509856920,-8495.04,0.00014246,2]
[332768777,1721509856930,-160.6217,0.00014246,2]
[332768778,1721509856940,-912.53,0.00014246,2]
[332768779,1721509856949,-500.0,0.00014246,2]
[332768780,1721509856959,-500.0,0.00014246,2]
[332768781,1721509856968,-1013.9,0.00014246,2]
[332768782,1721509856977,-500.0,0.00014246,2]
[332768783,1721509856990,-12539.83,0.00014246,2]
[332768784,1721509857000,-500.0,0.00014246,2]
[332768785,1721509857010,-500.0,0.00014246,2]
[332768786,1721509857024,-832.89,0.00014246,2]
[332768787,1721509857035,-421.88467126,0.00014246,2]
[332768788,1721509857045,-2200.07,0.00014246,2]
[332768789,1721509857055,-500.0,0.00014246,2]
[332768790,1721509857065,-850.96,0.00014246,2]
[332768791,1721509857079,-1061.7,0.00014246,2]
[332768792,1721509857092,-500.0,0.00014246,2]
[332768793,1721509857103,-1162.5,0.00014246,2]
[332768794,1721509857112,-500.0,0.00014246,2]
[332768795,1721509857122,-1471.9,0.00014246,2]
[332768796,1721509857132,-2198.38,0.00014246,2]
[332768797,1721509857142,-500.0,0.00014246,2]
[332768798,1721509857151,-500.0,0.00014246,2]
[332768799,1721509857161,-2125.73,0.00014246,2]
[332768800,1721509857172,-500.0,0.00014246,2]
[332768801,1721509857182,-800.21,0.00014246,2]
[332768802,1721509857192,-500.0,0.00014246,2]
[332768803,1721509857201,-500.0,0.00014246,2]
[332768804,1721509857211,-1971.06,0.00014246,2]
[332768805,1721509857220,-2143.04,0.00014246,2]
[332768806,1721509857230,-500.0,0.00014246,2]
[332768807,1721509857240,-1975.25,0.00014246,2]
[332768808,1721509857249,-500.0,0.00014246,2]
[332768809,1721509857259,-500.0,0.00014246,2]
[332768810,1721509857268,-500.0,0.00014246,2]
[332768811,1721509857277,-500.0,0.00014246,2]
[332768812,1721509857287,-1227.14,0.00014246,2]
[332768813,1721509857296,-500.0,0.00014246,2]
[332768814,1721509857306,-2777.37,0.00014246,2]
[332768815,1721509857315,-5184.96,0.00014246,2]
[332768816,1721509857325,-500.0,0.00014246,2]
[332768817,1721509857334,-500.0,0.00014246,2]
[332768818,1721509857343,-2128.81,0.00014246,2]
[332768819,1721509857353,-7619.7,0.00014246,2]
[332768820,1721509857362,-750.0,0.00014247,2]
[332768821,1721509857371,-1706.52594826,0.00014298,2]
[332768822,1721509857380,-153.0,0.00014352,2]
[332768823,1721509857390,-153.0,0.00014352,2]
[332768824,1721509857399,-153.0,0.00014352,2]
[332768825,1721509857410,-153.0,0.00014352,2]
[332768826,1721509857419,-153.0,0.00014352,2]
[332768827,1721509857428,-153.0,0.00014352,2]
[332768828,1721509857438,-153.0,0.00014352,2]
[332768829,1721509857447,-628.09916781,0.0001442,2]
[332768830,1721509857456,-153.0,0.0001442,2]
[332768831,1721509857466,-153.0,0.0001442,2]
[332768832,1721509857475,-153.0,0.0001442,2]
[332768833,1721509857485,-153.0,0.0001442,2]
[332768834,1721509857494,-153.0,0.0001442,2]
[332768835,1721509857504,-153.0,0.0001442,2]
[332768836,1721509857513,-153.0,0.0001442,2]
[332768837,1721509857523,-395.2625822,0.0001442,2]
[332768838,1721509857532,-153.0,0.0001442,2]
[332768839,1721509857542,-206.5817573,0.0001442,2]
[332768840,1721509857551,-206.5817573,0.0001442,2]
[332768841,1721509857560,-293.8031846,0.0001442,2]
[332768842,1721509857569,-206.5817573,0.0001442,2]
[332768843,1721509857579,-206.5817573,0.0001442,2]
[332768844,1721509857588,-206.5817573,0.0001442,2]
[332768845,1721509857598,-705.1331118,0.0001442,2]
[332768846,1721509857607,-206.3691827,0.0001442,2]
[332768847,1721509857616,-206.5817573,0.0001442,2]
[332768848,1721509857627,-206.5817573,0.0001442,2]
[332768849,1721509857636,-412.7028763,0.0001442,2]
[332768850,1721509857646,-587.0,0.00014423,2]
[332768851,1721509857655,-500.0,0.0001452,2]
[332768852,1721509857664,-500.0,0.0001452,2]
[332768853,1721509857673,-500.0,0.0001452,2]
[332768854,1721509857682,-500.0,0.0001452,2]
[332768855,1721509857692,-745.12,0.0001452,2]
[332768856,1721509857702,-500.0,0.0001452,2]
[332768857,1721509857711,-500.0,0.0001452,2]
[332768858,1721509857721,-518.35,0.0001452,2]
[332768859,1721509857730,-551.6,0.0001452,2]
[332768860,1721509857740,-891.72,0.0001452,2]
[332768861,1721509857750,-500.0,0.0001452,2]
[332768862,1721509857760,-500.0,0.0001452,2]
[332768863,1721509857769,-500.0,0.0001452,2]
[332768864,1721509857779,-500.0,0.0001452,2]
[332768865,1721509857789,-500.0,0.0001452,2]
[332768866,1721509857799,-500.0,0.0001452,2]
[332768867,1721509857809,-500.0,0.0001452,2]
[332768868,1721509857818,-642.89,0.0001452,2]
[332768869,1721509857828,-1155.34,0.0001452,2]
[332768870,1721509857837,-585.8279471,0.0001452,2]
[332768871,1721509857846,-500.0,0.0001452,2]
[332768872,1721509857856,-576.43,0.0001452,2]
[332768873,1721509857866,-500.0,0.0001452,2]
[332768874,1721509857875,-1511.54,0.0001452,2]
[332768875,1721509857884,-800.31,0.0001452,2]
[332768876,1721509857894,-518.08,0.0001452,2]
[332768877,1721509857903,-825.39,0.0001452,2]
[332768878,1721509857913,-500.0,0.0001452,2]
[332768879,1721509857922,-500.0,0.0001452,2]
[332768880,1721509857932,-500.0,0.0001452,2]
[332768881,1721509857941,-715.07,0.0001452,2]
[332768882,1721509857951,-500.0,0.0001452,2]
[332768883,1721509857960,-500.0,0.0001452,2]
[332768884,1721509857970,-500.0,0.0001452,2]
[332768885,1721509857980,-500.0,0.0001452,2]
[332768886,1721509857991,-559.68,0.0001452,2]
[332768887,1721509858000,-500.0,0.0001452,2]
[332768888,1721509858010,-391.90915622,0.0001452,2]
[332768889,1721509858020,-500.0,0.0001452,2]
[332768890,1721509858032,-820.39,0.0001452,2]
[332768891,1721509858042,-534.99,0.0001452,2]
[332768892,1721509858051,-500.0,0.0001452,2]
[332768893,1721509858061,-500.0,0.0001452,2]
[332768894,1721509858071,-500.0,0.0001452,2]
[332768895,1721509858080,-857.85,0.0001452,2]
[332768896,1721509858091,-2907.16,0.0001452,2]
[332768897,1721509858103,-500.0,0.0001452,2]
[332768898,1721509858112,-500.0,0.0001452,2]
[332768899,1721509858122,-500.0,0.0001452,2]
[332768900,1721509858133,-500.0,0.0001452,2]
[332768901,1721509858143,-335.08887657,0.0001452,2]
[332768902,1721509858153,-775.55,0.0001452,2]
[332768903,1721509858163,-508.54564734,0.0001452,2]
[332768904,1721509858174,-504.399664,0.0001452,2]
[332768905,1721509858185,-717.1,0.0001452,2]
[332768906,1721509858195,-870.27,0.0001452,2]
[332768907,1721509858204,-500.0,0.0001452,2]
[332768908,1721509858214,-500.0,0.0001452,2]
[332768909,1721509858223,-960.36,0.0001452,2]
[332768910,1721509858234,-500.0,0.0001452,2]
[332768911,1721509858243,-721.48,0.0001452,2]
[332768912,1721509858253,-1511.06,0.0001452,2]
[332768913,1721509858263,-747.28,0.0001452,2]
[332768914,1721509858273,-500.0,0.0001452,2]
[332768915,1721509858283,-500.0,0.0001452,2]
[332768916,1721509858292,-1034.63,0.0001452,2]
[332768917,1721509858301,-500.0,0.0001452,2]
[332768918,1721509858310,-500.0,0.0001452,2]
[332768919,1721509858320,-899.88,0.0001452,2]
[332768920,1721509858329,-616.77,0.0001452,2]
[332768921,1721509858338,-2709.53,0.0001452,2]
[332768922,1721509858348,-500.0,0.0001452,2]
[332768923,1721509858357,-500.0,0.0001452,2]
[332768924,1721509858367,-500.0,0.0001452,2]
[332768925,1721509858376,-500.0,0.0001452,2]
[332768926,1721509858386,-500.0,0.0001452,2]
[332768927,1721509858396,-571.5,0.0001452,2]
[332768928,1721509858406,-500.0,0.0001452,2]
[332768929,1721509858416,-721.72,0.0001452,2]
[332768930,1721509858425,-662.93,0.0001452,2]
[332768931,1721509858435,-500.0,0.0001452,2]
[332768932,1721509858444,-538.55,0.0001452,2]
[332768933,1721509858454,-1071.69,0.0001452,2]
[332768934,1721509858463,-1906.7,0.0001452,2]
[332768935,1721509858473,-3805.56,0.0001452,2]
[332768936,1721509858485,-500.0,0.0001452,2]
[332768937,1721509858495,-500.0,0.0001452,2]
[332768938,1721509858504,-545.40045561,0.0001452,2]
[332768939,1721509858514,-601.38,0.0001452,2]
[332768940,1721509858523,-500.0,0.0001452,2]
[332768941,1721509858533,-1352.76,0.0001452,2]
[332768942,1721509858542,-500.0,0.0001452,2]
[332768943,1721509858552,-500.0,0.0001452,2]
[332768944,1721509858562,-500.0,0.0001452,2]
[332768945,1721509858571,-500.0,0.0001452,2]
[332768946,1721509858581,-500.0,0.0001452,2]
[332768947,1721509858591,-500.0,0.0001452,2]
[332768948,1721509858602,-500.0,0.0001452,2]
[332768949,1721509858611,-500.0,0.0001452,2]
[332768950,1721509858783,-511.58,0.0001452,2]
[332768951,1721509858793,-500.0,0.0001452,2]
[332768952,1721509858803,-1111.11,0.0001452,2]
[332768953,1721509858812,-500.0,0.0001452,2]
[332768954,1721509858822,-524.53,0.0001452,2]
[332768955,1721509858831,-500.0,0.0001452,2]
[332768956,1721509858840,-561.12,0.0001452,2]
[332768957,1721509858850,-500.0,0.0001452,2]
[332768958,1721509858860,-500.0,0.0001452,2]
[332768959,1721509858870,-500.0,0.0001452,2]
[332768960,1721509858879,-500.0,0.0001452,2]
[332768961,1721509858888,-500.0,0.0001452,2]
[332768962,1721509858898,-500.0,0.0001452,2]
[332768963,1721509858907,-806.78,0.0001452,2]
[332768964,1721509858917,-548.18,0.0001452,2]
[332768965,1721509858926,-634.23,0.0001452,2]
[332768966,1721509858936,-527.11963763,0.0001452,2]
[332768967,1721509858945,-1714.36,0.0001452,2]
[332768968,1721509858955,-500.0,0.0001452,2]
[332768969,1721509858964,-500.0,0.0001452,2]
[332768970,1721509858973,-779.6,0.0001452,2]
[332768971,1721509858984,-1769.742383,0.0001452,2]
[332768972,1721509858993,-500.0,0.0001452,2]
[332768973,1721509859002,-315.09393361,0.0001452,2]
[332768974,1721509859012,-500.0,0.0001452,2]
[332768975,1721509859021,-1769.742383,0.0001452,2]
[332768976,1721509859031,-1706.73,0.0001452,2]
[332768977,1721509859041,-500.0,0.0001452,2]
[332768978,1721509859050,-2452.36,0.0001452,2]
[332768979,1721509859059,-500.0,0.0001452,2]
[332768980,1721509859069,-208.87,0.0001452,2]
[332768981,1721509859079,-563.32,0.0001452,2]
[332768982,1721509859089,-576.76,0.0001452,2]
[332768983,1721509859103,-1533.71,0.0001452,2]
[332768984,1721509859112,-1553.15,0.0001452,2]
[332768985,1721509859121,-574.43,0.0001452,2]
[332768986,1721509859131,-500.0,0.0001452,2]
[332768987,1721509859142,-737.02,0.0001452,2]
[332768988,1721509859151,-500.0,0.0001452,2]
[332768989,1721509859160,-1803.4,0.0001452,2]
[332768990,1721509859170,-500.0,0.0001452,2]
[332768991,1721509859180,-500.0,0.0001452,2]
[332768992,1721509859190,-150.0,0.0001452,2]
[332768993,1721509859200,-500.0,0.0001452,2]
[332768994,1721509859209,-371.21872969,0.0001452,2]
[332768995,1721509859219,-500.0,0.0001452,2]
[332768996,1721509859228,-516.79,0.0001452,2]
[332768997,1721509859239,-1165.91,0.0001452,2]
[332768998,1721509859250,-500.0,0.0001452,2]
[332768999,1721509859260,-500.0,0.0001452,2]
[332769000,1721509859269,-500.0,0.0001452,2]
[332769001,1721509859278,-1264.95,0.0001452,2]
[332769002,1721509859288,-500.0,0.0001452,2]
[332769003,1721509859297,-624.72,0.0001452,2]
[332769004,1721509859306,-500.0,0.0001452,2]
[332769005,1721509859316,-500.0,0.0001452,2]
[332769006,1721509859326,-500.0,0.0001452,2]
[332769007,1721509859336,-500.0,0.0001452,2]
[332769008,1721509859346,-500.0,0.0001452,2]
[332769009,1721509859355,-865.37,0.0001452,2]
[332769010,1721509859364,-500.0,0.0001452,2]
[332769011,1721509859374,-608.57,0.0001452,2]
[332769012,1721509859383,-500.0,0.0001452,2]
[332769013,1721509859393,-500.0,0.0001452,2]
[332769014,1721509859402,-500.0,0.0001452,2]
[332769015,1721509859411,-500.0,0.0001452,2]
[332769016,1721509859420,-1839.42,0.0001452,2]
[332769017,1721509859430,-500.0,0.0001452,2]
[332769018,1721509859439,-677.98,0.0001452,2]
[332769019,1721509859449,-500.0,0.0001452,2]
[332769020,1721509859458,-1768.99,0.0001452,2]
[332769021,1721509859467,-1188.57,0.0001452,2]
[332769022,1721509859477,-934.33,0.0001452,2]
[332769023,1721509859487,-500.0,0.0001452,2]
[332769024,1721509859496,-500.0,0.0001452,2]
[332769025,1721509859505,-500.0,0.0001452,2]
[332769026,1721509859515,-500.0,0.0001452,2]
[332769027,1721509859524,-878.88,0.0001452,2]
[332769028,1721509859534,-1540.72,0.0001452,2]
[332769029,1721509859543,-500.0,0.0001452,2]
[332769030,1721509859552,-500.0,0.0001452,2]
[332769031,1721509859562,-3248.56,0.0001452,2]
[332769032,1721509859571,-652.86,0.0001452,2]
[332769033,1721509859580,-500.0,0.0001452,2]
[332769034,1721509859589,-500.0,0.0001452,2]
[332769035,1721509859599,-500.0,0.0001452,2]
[332769036,1721509859608,-600.22657191,0.0001452,2]
[332769037,1721509859617,-500.0,0.0001452,2]
[332769038,1721509859627,-500.0,0.0001452,2]
[332769039,1721509859636,-584.89,0.0001452,2]
[332769040,1721509859646,-500.0,0.0001452,2]
[332769041,1721509859655,-552.96,0.0001452,2]
[332769042,1721509859665,-500.0,0.0001452,2]
[332769043,1721509859674,-1988.14,0.0001452,2]
[332769044,1721509859684,-500.0,0.0001452,2]
[332769045,1721509859693,-1939.37,0.0001452,2]
[332769046,1721509859702,-809.27,0.0001452,2]
[332769047,1721509859712,-603.1,0.0001452,2]
[332769048,1721509859721,-232.95849691,0.0001452,2]
[332769049,1721509859731,-1333.39,0.0001452,2]
[332769050,1721509859743,-541.24,0.0001452,2]
[332769051,1721509859754,-3997.67,0.0001452,2]
[332769052,1721509859764,-1778.54,0.0001452,2]
[332769053,1721509859773,-632.86,0.0001452,2]
[332769054,1721509859782,-500.0,0.0001452,2]
[332769055,1721509859792,-2328.09,0.0001452,2]
[332769056,1721509859801,-500.0,0.0001452,2]
[332769057,1721509859810,-1040.05,0.0001452,2]
[332769058,1721509859819,-1223.7,0.0001452,2]
[332769059,1721509859828,-500.0,0.0001452,2]
[332769060,1721509859838,-500.0,0.0001452,2]
[332769061,1721509859847,-3052.09,0.0001452,2]
[332769062,1721509859857,-500.0,0.0001452,2]
[332769063,1721509859867,-2118.41,0.0001452,2]
[332769064,1721509859876,-500.0,0.0001452,2]
[332769065,1721509859885,-3033.57,0.0001452,2]
[332769066,1721509859895,-500.0,0.0001452,2]
[332769067,1721509859905,-640.29,0.0001452,2]
[332769068,1721509859915,-522.98,0.0001452,2]
[332769069,1721509859924,-500.0,0.0001452,2]
[332769070,1721509859934,-1374.85,0.0001452,2]
[332769071,1721509859943,-500.0,0.0001452,2]
[332769072,1721509859954,-500.0,0.0001452,2]
[332769073,1721509859963,-500.0,0.0001452,2]
[332769074,1721509859972,-551.83,0.0001452,2]
[332769075,1721509859982,-657.62,0.0001452,2]
[332769076,1721509859993,-500.0,0.0001452,2]
[332769077,1721509860003,-503.55041733,0.0001452,2]
[332769078,1721509860013,-872.61,0.0001452,2]
[332769079,1721509860022,-1648.23,0.0001452,2]
[332769080,1721509860032,-500.0,0.0001452,2]
[332769081,1721509860041,-254.08393056,0.0001452,2]
[332769082,1721509860052,-614.15,0.0001452,2]
[332769083,1721509860062,-548.79,0.0001452,2]
[332769084,1721509860072,-1196.4,0.0001452,2]
[332769085,1721509860081,-540.44,0.0001452,2]
[332769086,1721509860091,-500.0,0.0001452,2]
[332769087,1721509860104,-500.0,0.0001452,2]
[332769088,1721509860114,-324.77928867,0.0001452,2]
[332769089,1721509860123,-500.0,0.0001452,2]
[332769090,1721509860132,-626.91,0.0001452,2]
[332769091,1721509860143,-500.0,0.0001452,2]
[332769092,1721509860152,-587.18,0.0001452,2]
[332769093,1721509860162,-500.0,0.0001452,2]
[332769094,1721509860174,-423.73046473,0.0001452,2]
[332769095,1721509860184,-500.0,0.0001452,2]
[332769096,1721509860194,-3527.45,0.0001452,2]
[332769097,1721509860203,-500.0,0.0001452,2]
[332769098,1721509860221,-500.0,0.0001452,2]
[332769099,1721509860230,-1023.7,0.0001452,2]
[332769100,1721509860240,-16419.34,0.0001452,2]
[332769101,1721509860249,-500.0,0.0001452,2]
[332769102,1721509860258,-1871.24,0.0001452,2]
[332769103,1721509860269,-2012.19,0.0001452,2]
[332769104,1721509860278,-4825.35,0.0001452,2]
[332769105,1721509860288,-500.0,0.0001452,2]
[332769106,1721509860297,-810.53,0.0001452,2]
[332769107,1721509860307,-1959.59,0.0001452,2]
[332769108,1721509860316,-500.0,0.0001452,2]
[332769109,1721509860325,-603.38,0.0001452,2]
[332769110,1721509860335,-2679.42,0.0001452,2]
[332769111,1721509860344,-8367.53,0.0001452,2]
[332769112,1721509860354,-616.05,0.0001452,2]
[332769113,1721509860363,-717.76,0.0001452,2]
[332769114,1721509860373,-4600.07,0.0001452,2]
[332769115,1721509860382,-500.0,0.0001452,2]
[332769116,1721509860391,-571.92256385,0.0001452,2]
[332769117,1721509860400,-500.0,0.0001452,2]
[332769118,1721509860410,-562.63316697,0.0001452,2]
[332769119,1721509860419,-6662.52,0.0001452,2]
[332769120,1721509860429,-2579.67,0.0001452,2]
[332769121,1721509860439,-641.37526896,0.0001452,2]
[332769122,1721509860448,-500.0,0.0001452,2]
[332769123,1721509860457,-2904.58,0.0001452,2]
[332769124,1721509860466,-157.78037707,0.0001452,2]
[332769125,1721509860475,-4244.03,0.0001452,2]
[332769126,1721509860486,-500.0,0.0001452,2]
[332769127,1721509860496,-571.85,0.0001452,2]
[332769128,1721509860505,-2810.71,0.0001452,2]
[332769129,1721509860514,-601.67470916,0.0001452,2]
[332769130,1721509860523,-516.51303496,0.0001452,2]
[332769131,1721509860532,-540.77,0.0001452,2]
[332769132,1721509860542,-500.0,0.0001452,2]
[332769133,1721509860551,-500.0,0.0001452,2]
[332769134,1721509860560,-641.78,0.0001452,2]
[332769135,1721509860569,-500.0,0.0001452,2]
[332769136,1721509860578,-500.0,0.0001452,2]
[332769137,1721509860587,-1306.26,0.0001452,2]
[332769138,1721509860596,-500.0,0.0001452,2]
[332769139,1721509860605,-1810.99,0.0001452,2]
[332769140,1721509860614,-983.71,0.0001452,2]
[332769141,1721509860624,-508.67,0.0001452,2]
[332769142,1721509860633,-500.0,0.0001452,2]
[332769143,1721509860642,-500.0,0.0001452,2]
[332769144,1721509860651,-500.0,0.0001452,2]
[332769145,1721509860661,-1102.58,0.0001452,2]
[332769146,1721509860670,-500.0,0.0001452,2]
[332769147,1721509860680,-500.0,0.0001452,2]
[332769148,1721509860689,-500.0,0.0001452,2]
[332769149,1721509860698,-1207.03,0.0001452,2]
[332769150,1721509860708,-1038.461517,0.0001452,2]
[332769151,1721509860718,-1035.9,0.0001452,2]
[332769152,1721509860727,-500.0,0.0001452,2]
[332769153,1721509860737,-500.0,0.0001452,2]
[332769154,1721509860746,-500.0,0.0001452,2]
[332769155,1721509860756,-500.0,0.0001452,2]
[332769156,1721509860765,-1038.461517,0.0001452,2]
[332769157,1721509860773,-2402.51,0.0001452,2]
[332769158,1721509860783,-500.0,0.0001452,2]
[332769159,1721509860792,-500.0,0.0001452,2]
[332769160,1721509860801,-687.59,0.0001452,2]
[332769161,1721509860810,-752.37,0.0001452,2]
[332769162,1721509860819,-500.0,0.0001452,2]
[332769163,1721509860829,-1256.37,0.0001452,2]
[332769164,1721509860839,-1336.62,0.0001452,2]
[332769165,1721509860848,-500.0,0.0001452,2]
[332769166,1721509860859,-1137.19,0.0001452,2]
[332769167,1721509860868,-500.0,0.0001452,2]
[332769168,1721509860877,-1896.75,0.0001452,2]
[332769169,1721509860886,-507.40824382,0.0001452,2]
[332769170,1721509860895,-2521.54,0.0001452,2]
[332769171,1721509860904,-10248.99,0.0001452,2]
[332769172,1721509860914,-1360.19,0.0001452,2]
[332769173,1721509860924,-500.0,0.0001452,2]
[332769174,1721509860933,-12219.86,0.0001452,2]
[332769175,1721509860942,-500.0,0.0001452,2]
[332769176,1721509860951,-500.0,0.0001452,2]
[332769177,1721509860961,-500.0,0.0001452,2]
[332769178,1721509860970,-2906.83,0.0001452,2]
[332769179,1721509860979,-500.0,0.0001452,2]
[332769180,1721509860989,-500.0,0.0001452,2]
[332769181,1721509860999,-500.0,0.0001452,2]
[332769182,1721509861008,-1339.52,0.0001452,2]
[332769183,1721509861017,-500.0,0.0001452,2]
[332769184,1721509861027,-838.95,0.0001452,2]
[332769185,1721509861036,-1411.67,0.0001452,2]
[332769186,1721509861045,-509.59,0.0001452,2]
[332769187,1721509861106,-160.6217,0.0001452,2]
[332769188,1721509861115,-500.0,0.0001452,2]
[332769189,1721509861124,-500.0,0.0001452,2]
[332769190,1721509861135,-8495.04,0.0001452,2]
[332769191,1721509861144,-160.6217,0.0001452,2]
[332769192,1721509861154,-912.53,0.0001452,2]
[332769193,1721509861163,-500.0,0.0001452,2]
[332769194,1721509861173,-500.0,0.0001452,2]
[332769195,1721509861183,-1013.9,0.0001452,2]
[332769196,1721509861192,-500.0,0.0001452,2]
[332769197,1721509861201,-12539.83,0.0001452,2]
[332769198,1721509861211,-500.0,0.0001452,2]
[332769199,1721509861221,-500.0,0.0001452,2]
[332769200,1721509861230,-832.89,0.0001452,2]
[332769201,1721509861241,-2200.07,0.0001452,2]
[332769202,1721509861252,-850.96,0.0001452,2]
[332769203,1721509861261,-1061.7,0.0001452,2]
[332769204,1721509861271,-500.0,0.0001452,2]
[332769205,1721509861282,-1162.5,0.0001452,2]
[332769206,1721509861292,-648.51,0.0001452,2]
[332769207,1721509861301,-2198.38,0.0001452,2]
[332769208,1721509861311,-1471.9,0.0001452,2]
[332769209,1721509861320,-500.0,0.0001452,2]
[332769210,1721509861329,-2125.73,0.0001452,2]
[332769211,1721509861339,-500.0,0.0001452,2]
[332769212,1721509861348,-800.21,0.0001452,2]
[332769213,1721509861357,-500.0,0.0001452,2]
[332769214,1721509861366,-500.0,0.0001452,2]
[332769215,1721509861376,-2143.04,0.0001452,2]
[332769216,1721509861385,-1971.06,0.0001452,2]
[332769217,1721509861395,-500.0,0.0001452,2]
[332769218,1721509861404,-1975.25,0.0001452,2]
[332769219,1721509861413,-500.0,0.0001452,2]
[332769220,1721509861423,-520.8514786,0.0001452,2]
[332769221,1721509861432,-500.0,0.0001452,2]
[332769222,1721509861442,-500.0,0.0001452,2]
[332769223,1721509861451,-1227.14,0.0001452,2]
[332769224,1721509861461,-500.0,0.0001452,2]
[332769225,1721509861470,-2777.37,0.0001452,2]
[332769226,1721509861480,-5184.96,0.0001452,2]
[332769227,1721509861491,-500.0,0.0001452,2]
[332769228,1721509861500,-500.0,0.0001452,2]
[332769229,1721509861510,-2128.81,0.0001452,2]
[332769230,1721509861520,-212.062,0.0001463,2]
[332769231,1721509861529,-150.0,0.0001463,2]
[332769232,1721509861539,-150.0,0.0001463,2]
[332769233,1721509861549,-504.0,0.0001463,2]
[332769234,1721509861558,-153.9016,0.00014793,2]
[332769235,1721509861569,-500.0,0.00014794,2]
[332769236,1721509861579,-500.0,0.00014794,2]
[332769237,1721509861588,-500.0,0.00014794,2]
[332769238,1721509861598,-157.54714294,0.00014794,2]
[332769239,1721509861607,-745.12,0.00014794,2]
[332769240,1721509861617,-500.0,0.00014794,2]
[332769241,1721509861627,-500.0,0.00014794,2]
[332769242,1721509861637,-518.35,0.00014794,2]
[332769243,1721509861646,-551.6,0.00014794,2]